[Event "Paris FIDE GP"]
[Site "Elancourt"]
[Date "2013.10.03"]
[Round "10"]
[White "Caruana, Fabiano"]
[Black "Tomashevsky, Evgeny"]
[Result "1-0"]
[ECO "B12"]
[WhiteElo "2779"]
[BlackElo "2706"]
[Annotator "ChessBase Website"]
[PlyCount "75"]
[EventDate "2013.09.22"]
[EventType "tourn"]
[EventRounds "11"]
[EventCountry "FRA"]
[EventCategory "20"]
[SourceTitle "CBM 157"]
[Source "ChessBase"]
[SourceDate "2013.11.12"]
[SourceVersion "1"]
[SourceVersionDate "2013.11.12"]
[SourceQuality "1"]
[TimeControl "40/7200:20/3600:900+30"]
[WhiteClock "2:00:00"]
[BlackClock "2:00:00"]

1. e4 {[%emt 0:00:03]} c6 {[%emt 0:00:05]} 2. d4 {[%emt 0:00:19]} d5 {[%emt 0:
00:06]} 3. e5 {[%emt 0:00:15]} Bf5 {[%emt 0:00:06]} 4. Nf3 {[%emt 0:00:18]} e6
{[%emt 0:00:16]} 5. Be2 {[%emt 0:00:06]} Nd7 {[%emt 0:00:14]} 6. O-O {[%emt 0:
00:40]} Bg6 {[%emt 0:00:07]} 7. Nbd2 {[%emt 0:02:16]} Nh6 {[%emt 0:00:34]} 8.
Nb3 {[%emt 0:00:52]} Nf5 {[%emt 0:00:32]} 9. a4 {[%emt 0:06:08]} Rc8 {[%emt 0:
13:24]} (9... Be7 10. g4 Nh6 11. h3 Ng8 $5 {has been played successfully by
Dreev and Laznicka this year, but it is also true that the black setup seems a
bit suspicious here!}) 10. a5 {[%emt 0:02:24]} h5 $146 {[%emt 0:17:38] A new
move. Black wants to keep his knight on f5!'} 11. g3 $5 {[%emt 0:12:08]
Stopping ...h4 (because of g4) and allowing a future h4-move for White.'} Be7 {
[%emt 0:07:10]} 12. Bf4 $5 {[%emt 0:08:11]} a6 {[%emt 0:19:08]} (12... c5 $5
13. dxc5 Nxc5 14. Bb5+ Kf8 15. c4 {should be a bit difficult for Black.}) 13.
c4 {[%emt 0:05:05]} dxc4 {[%emt 0:00:05]} 14. Bxc4 {[%emt 0:00:05]} O-O {
[%emt 0:00:05]} 15. Qe2 {[%emt 0:04:24][%csl Ga5,Rb6,Rb7] Due to the
super-pawn on a5, Black's position is a bit difficult since no knight can come
to d5!'} b5 $6 {[%emt 0:05:07] An interesting practical decision, but
objectively not such a good move.'} 16. axb6 {[%emt 0:00:24]} Nxb6 {[%emt 0:00:
06]} 17. Bxa6 {[%emt 0:01:00]} Rc7 {[%emt 0:05:22]} 18. Rfd1 {[%emt 0:14:54]} (
18. Rfc1 $1 {should be more precise, e.g.} Qd7 19. Qd1 Nd5 20. Bg5 $16) 18...
Ra7 {[%emt 0:12:56]} 19. h4 {[%emt 0:16:30]} Nd5 {[%emt 0:10:44]} 20. Bd2 {
[%emt 0:08:16]} Qb6 {[%emt 0:02:23]} 21. Bc4 {[%emt 0:00:40]} Rfa8 {[%emt 0:00:
12]} 22. Bc3 $6 {[%emt 0:08:20]} (22. Qe1 {[%cal Ge1a1,Gd1a1] with the idea to
exchange one rook and play Ra1 again should give White a clear advantage,
though with that structure it is never so easy to convert it.}) 22... Rxa1 {
[%emt 0:05:24]} 23. Rxa1 {[%emt 0:02:39]} Rxa1+ {[%emt 0:01:33]} 24. Nxa1 {
[%emt 0:00:05]} c5 {[%emt 0:00:05]} 25. Nb3 {[%emt 0:07:54]} cxd4 {[%emt 0:00:
44]} 26. Nfxd4 {[%emt 0:00:19]} Nxc3 {[%emt 0:09:29]} 27. bxc3 {[%emt 0:00:17]
Black is still worse but saved some of the problems. Now the drawing chances
should, in principle, be much higher. But Tomashevsky blundered and Caruana
brillantly punished it.'} Bc5 $4 {[%emt 0:00:37]} 28. Nxc5 {[%emt 0:04:39]}
Qxc5 {[%emt 0:00:02]} 29. Nxe6 $1 {[%emt 0:02:16]} fxe6 {[%emt 0:00:05]} 30.
Bxe6+ {[%emt 0:00:03]} Kh8 {[%emt 0:03:02]} (30... Kf8 {Romain Edouard} 31. Qe4
$1 $18) 31. Bxf5 {[%emt 0:00:34]} Bxf5 {[%emt 0:00:01]} 32. Qxh5+ {[%emt 0:00:
13]} Bh7 {[%emt 0:00:00]} 33. Qe8+ {[%emt 0:03:03]} Bg8 {[%emt 0:00:02]} 34. e6
$1 {[%emt 0:00:41]} Kh7 {[%emt 0:02:04]} 35. e7 {[%emt 0:00:05]} Qe5 {[%emt 0:
00:18]} 36. Qf8 {[%emt 0:00:45]} Qe1+ 37. Kh2 Bd5 $8 38. Qf5+ $18 1-0

[Event "Paris FIDE GP"]
[Site "Elancourt"]
[Date "2013.10.04"]
[Round "11"]
[White "Dominguez Perez, Leinier"]
[Black "Caruana, Fabiano"]
[Result "1/2-1/2"]
[ECO "B48"]
[WhiteElo "2757"]
[BlackElo "2779"]
[Annotator "ChessBase Website"]
[PlyCount "38"]
[EventDate "2013.09.22"]
[EventType "tourn"]
[EventRounds "11"]
[EventCountry "FRA"]
[EventCategory "20"]
[SourceTitle "CBM 157"]
[Source "ChessBase"]
[SourceDate "2013.11.12"]
[SourceVersion "1"]
[SourceVersionDate "2013.11.12"]
[SourceQuality "1"]
[TimeControl "40/7200:20/3600:900+30"]
[WhiteClock "2:00:00"]
[BlackClock "2:00:00"]

1. e4 {[%emt 0:00:04]} c5 {[%emt 0:00:03]} 2. Nf3 {[%emt 0:00:20]} e6 {[%emt 0:
00:05]} 3. d4 {[%emt 0:00:22]} cxd4 {[%emt 0:00:05]} 4. Nxd4 {[%emt 0:00:06]}
Nc6 {[%emt 0:00:05]} 5. Nc3 {[%emt 0:00:43]} Qc7 {[%emt 0:00:56]} 6. Be3 {
[%emt 0:00:09]} a6 {[%emt 0:00:09]} 7. Qd2 {[%emt 0:00:11]} Nf6 {[%emt 0:00:29]
} 8. O-O-O {[%emt 0:00:09]} Be7 {[%emt 0:00:27]} 9. f3 {[%emt 0:00:07]} b5 {
[%emt 0:00:28]} 10. g4 {[%emt 0:01:38]} Nxd4 {[%emt 0:00:19]} 11. Qxd4 {
[%emt 0:00:06]} Bb7 {[%emt 0:01:05]} 12. g5 {[%emt 0:08:20]} Nh5 {[%emt 0:00:
25]} 13. Rd2 {[%emt 0:03:05]} (13. Kb1 {looks more natural, but since it's
already been played successfully in Almasi-Inarkiev (2013), most probably
Caruana had something in mind.}) 13... Rc8 {[%emt 0:41:43]} 14. Bxb5 $5 $146 {
[%emt 0:12:51]} (14. Rg1 {was unclear in Saric-Khairullin 2013.}) 14... axb5 {
[%emt 0:00:04]} 15. Nxb5 {[%emt 0:00:07]} Qc6 {[%emt 0:05:46]} ({After} 15...
Qd8 {Caruana probably considered} 16. Qa7 {to be 'killing', but after} O-O 17.
Qxb7 Bxg5 18. Bxg5 Qxg5 {Black has very decent compensations for the pawn, e.g.
} 19. a4 Nf4 20. Kb1 Nd5 $1 $13) ({However} 15... Qb8 $6 16. Qxd7+ Kf8 17. Nd6
Rc7 18. Qa4 {is very dubious for Black.}) 16. Na7 {[%emt 0:03:48]} Qc7 {
[%emt 0:00:07]} (16... e5 $5 17. Qd3 (17. Qxe5 Qc7 $13) 17... Qe6 18. Nxc8 Bxc8
19. Kb1 O-O 20. Rhd1 Qh3 {seems unclear.}) 17. Nb5 {[%emt 0:03:44]} (17. Nxc8
Bxc8 {is just unclear.}) 17... Qc6 {[%emt 0:01:39]} 18. Na7 {[%emt 0:00:32]}
Qc7 {[%emt 0:00:09]} 19. Nb5 {[%emt 0:27:18]} Qc6 {[%emt 0:03:49] What a weird
decision! Caruana almost for sure had to win to qualify for Candidates. Of
course both the ...e5 and ... Qd8 ideas were not putting White in any kind of
trouble, but the position would remain playable.'} 1/2-1/2

[Event "Khanty-Mansiysk FIDE GP"]
[Site "Khanty-Mansiysk"]
[Date "2015.05.17"]
[Round "4"]
[White "Vachier Lagrave, Maxime"]
[Black "Caruana, Fabiano"]
[Result "0-1"]
[ECO "D38"]
[WhiteElo "2754"]
[BlackElo "2803"]
[Annotator "Wagner,D"]
[PlyCount "86"]
[EventDate "2015.05.14"]
[EventType "tourn"]
[EventRounds "11"]
[EventCountry "RUS"]
[EventCategory "21"]
[SourceTitle "CBM 167"]
[Source "ChessBase"]
[SourceDate "2015.07.13"]
[SourceVersion "1"]
[SourceVersionDate "2015.07.13"]
[SourceQuality "1"]
[TimeControl "40/7200:20/3600:900+30"]

1. d4 {[%emt 0:00:03]} Nf6 {[%emt 0:00:08]} 2. c4 {[%emt 0:00:03]} e6 {[%emt 0:
00:04]} 3. Nf3 {[%emt 0:00:05]} d5 {[%emt 0:00:04]} 4. Nc3 {[%emt 0:00:03]} Bb4
{[%emt 0:00:05] The Ragozin is one of the most popular openings against 1.d4
nowadays!} (4... c6 5. Bg5 Nbd7 6. e3 Qa5 7. cxd5 exd5 8. Bd3 Ne4 9. O-O Nxg5
10. Nxg5 $14 {This specific position is supposed to be favourable for White.
Compared to the game White didn't waste time on Rc1 and his lead in
development is clearly visible.}) 5. cxd5 {[%emt 0:01:10]} exd5 {[%emt 0:00:11]
} 6. Bg5 {[%emt 0:00:05]} Nbd7 {[%emt 0:00:19]} (6... h6 $5 {is the
alternative here.}) 7. Rc1 $5 {[%emt 0:05:19] With the obvious idea of
preventing c5.} (7. e3 {is the main move.}) 7... c6 {[%emt 0:05:13]} (7... c5
8. dxc5 Qa5 9. Bd2 $1 $16 {That's the point, without a pawn on e3 the bishop
can retreat.}) 8. e3 {[%emt 0:00:40]} (8. a3 {has been played more often.}
Bxc3+ (8... Bd6 {is also not dangerous for Black.} 9. e3 O-O 10. Be2 Re8 11.
Bh4 Nf8 12. Bg3 Ng6 13. Bxd6 Qxd6 14. O-O Bg4 $11 {0-1 (44) Zubov,A (2588)
-Moiseenko,A (2701) Lvov 2014}) 9. Rxc3 (9. bxc3 Qa5 10. Qb3 Ne4 11. Qb4 (11.
e3 O-O $11) 11... Qxb4 12. cxb4 a5 $15 {0-1 (32) Kurbonboeva,S (2235)-Safarli,
E (2641) Tashkent 2015}) 9... h6 10. Re3+ $5 Kf8 11. Bxf6 Nxf6 12. g3 g6 13.
Bg2 Kg7 14. O-O Ne4 {1/2-1/2 (25) Ivekovic,B (2300)-Palac,M (2581) Zagreb 2015;
with a funny, but equal position.}) (8. Qc2 h6 9. Bh4 g5 10. Bg3 Ne4 11. Nd2 (
11. e3 h5 $1 12. Bd3 h4 13. Bxe4 hxg3 14. Bf5 gxf2+ 15. Kxf2 Nf6 $11) 11...
Ndf6 12. e3 Nxg3 (12... Nxd2 $1 13. Qxd2 (13. Kxd2 $5 Ne4+ 14. Kd1 Bxc3 15.
bxc3 Bf5 16. Bd3 O-O 17. f3 Nxg3 18. hxg3 Bxd3 19. Qxd3 Qf6 $11) 13... Ne4 14.
Qc2 h5 15. f3 Nxg3 16. hxg3 Bd6 17. Kf2 h4 $15) 13. hxg3 Qe7 14. Bd3 Be6 15. a3
Bd6 16. Na4 Rd8 17. Nc5 Bc8 18. b4 Ng4 {1-0 (41) Carlsen,M (2813)-Grischuk,A 
(2756) Nice 2010; with complicated and unclear play, where Black is not worse.}
) 8... Qa5 $1 {[%emt 0:16:47]} 9. Bd3 {[%emt 0:00:09]} (9. Qb3 Ne4 10. Bf4 (10.
Bd3 O-O 11. O-O Nxg5 12. Nxg5 Nf6 13. a3 Bd6 14. Qc2 h6 15. Nh7 Nxh7 16. Bxh7+
Kh8 $11) 10... c5 11. a3 Bxc3+ 12. bxc3 c4 13. Qb4 Qxb4 14. axb4 a5 $11 {
1-0 (41) Mamedyarov,S (2741)-Halkias,S (2566) Bursa 2010}) 9... Ne4 {[%emt 0:
03:08]} 10. O-O {[%emt 0:02:37]} Nxg5 {[%emt 0:09:01]} 11. Nxg5 {[%emt 0:00:14]
This position reminds me of a similar scenario in the Campridge Springs (see
above). White has given up the pair of bishops, but intends to use the outpost
on e5 by playing f4,Nf3,Ne5.} Nf6 {[%emt 0:05:12]} 12. Qc2 {[%emt 0:09:50]} h6
{[%emt 0:09:05]} 13. Nf3 {[%emt 0:00:46]} Bd6 {[%emt 0:00:07]} (13... O-O $5
14. h3 Be6 15. Ne5 c5 16. f4 (16. dxc5 Qxc5 17. a3 Bxc3 18. Qxc3 Qxc3 19. Rxc3
Rac8 $11) 16... cxd4 17. exd4 Rac8 $11 {1-0 (32) Sargissian,G (2677)-Cramling,
P (2536) Villafranca 2010}) 14. Ne5 {[%emt 0:06:07]} Ng4 $1 {[%emt 0:06:05]
Caruana tries to interfere with White´s plans.} 15. Nf3 {[%emt 0:17:00]} (15.
Nxg4 Bxg4 16. h3 Be6 $11 {is not dangerous at all.}) 15... Nf6 {[%emt 0:05:32]}
16. h3 {[%emt 0:00:23] Of course MVL doesn´t agree to the repetition and
prepares the knight invasion first.} O-O {[%emt 0:18:48]} 17. Ne5 {[%emt 0:01:
01]} a6 $1 {[%emt 0:00:37][%cal Gc6c5] The first novelty of the game, although
probably neither players knew that, as they had already used quite a huge
amount of time.} (17... c5 $2 {is premature.} 18. Nb5 $1 {This explains the
necessary prophylaxis 17.-a6.} Bxe5 19. dxe5 Nd7 20. f4 c4 21. Bh7+ Kh8 22. Nd6
$16 {1-0 (30) Gelfand,B (2758)-Jakovenko,D (2736) Khanty-Mansiysk 2009}) 18. f4
{[%emt 0:06:55]} (18. Na4 $5 {preventing Black´s idea, before initiating play
of his own comes into consideration. I give some sample lines:} Qc7 19. f4 Re8
20. Nc5 (20. a3 a5 21. g4 (21. Rf3 Be6 22. Nc5 (22. Rg3 Rad8 23. Qe2 Kh8 24.
Bb1 Re7 $11) 22... Bxc5 23. Qxc5 Ne4 24. Bxe4 dxe4 25. Rf2 f6 26. f5 fxe5 27.
fxe6 exd4 28. Rf7 Qg3 29. Qxd4 Rxe6 30. Rxb7 Kh7 $11) (21. Nc5 $1) 21... Be6
22. Nc5 Bxc5 23. Qxc5 Nd7 $11) 20... a5 21. a3 Re7 (21... Nd7 22. Bh7+ Kf8 23.
Ncxd7+ Bxd7 24. Rf3 $36) 22. Qf2 Nd7 23. Na4 $1 Nf6 24. Qh4 {White has some
initiative.}) 18... c5 {[%emt 0:00:41]} 19. g4 {[%emt 0:04:16] This pawn
thrust is aggressive, but rather risky, too. If the position opens, the king
is going to be very weak.} ({I prefer a move like this one, possibly preparing
the regroupment Bb1, Qc2:} 19. Qf2 Be6 20. a3 Rfe8 $1 (20... c4 21. Bb1 Rfe8
22. Qc2 b5 23. g4 $40) 21. Bb1 Rad8 22. Qc2 Qc7 23. g4 b5 $132) 19... cxd4 {
[%emt 0:07:36]} 20. exd4 {[%emt 0:00:09]} Be6 {[%emt 0:02:07]} 21. Qb3 $6 {
[%emt 0:10:21] I assume that this was played with the idea of f5 in mind and
is a first step in the wrong direction. White has to be extremly careful and
should keep control over his position, with a useful move like Kg2.} (21. g5 $2
hxg5 22. fxg5 Bxe5 23. dxe5 Nd7 $17) (21. Kg2 {It makes sense to move the king
out of the diagonal g1-a7. The white queen will go to f2, and later, at the
right moment, g5 might follow. Black has counterplay, too and the position
should be dynamically balanced, althoug probably easier to play with Black,
since White has a long-term problem with his king safety.} b5 22. a3 Qb6 23.
Qf2 Rad8 24. Rfe1 Bc8 25. g5 (25. Bb1 Bb7 26. Rcd1 Rfe8 27. Qc2 {is not so
effective here.} (27. Qf3 b4 $132) 27... Ne4 $1) 25... hxg5 26. fxg5 Ne4 (26...
Nh5 $5) 27. Nxe4 dxe4 28. Bxe4 Bxe5 29. dxe5 Bxh3+ 30. Kg3 Qxf2+ 31. Kxf2 g6
$11) 21... b5 {[%emt 0:05:24]} 22. f5 {[%emt 0:03:18]} (22. Qc2 {Returning the
queen is safer, but of course not very principled.}) 22... Qb6 $1 {[%emt 0:01:
07]} 23. Nf3 {[%emt 0:00:07]} Bc8 {[%emt 0:00:46]} 24. Kg2 $6 {[%emt 0:00:52]}
(24. Nxd5 $1 Nxd5 25. Be4 $1 {It´s very difficult to decide on this sequence
during a game, because it´s easy to miss something due to White´s bad king
safety.} Nc7 26. Rc6 $1 {All the following complications should somehow end in
a draw.} Qb7 (26... Qb8 27. Rxd6 Ne8 28. Bxa8 Qxd6 29. Kg2 Nf6 30. Ne5 $1 Qxd4
31. Re1 {Somehow White is holding here.} Qd2+ 32. Kf1 Bxf5 33. gxf5 Rxa8 34.
Qxf7+ Kh7 35. Qg6+ $11) 27. Nd2 Be7 (27... Re8 28. Rxd6 Rxe4 29. Nxe4 Qxe4 30.
Rd8+ Kh7 31. Qxf7 Qe3+ 32. Kh2 Qe2+ $11) 28. f6 Bxf6 29. Rcxf6 (29. Rfxf6 Qa7 (
29... gxf6 30. Rxf6 $18) 30. Rf2 Ne6 31. Rd6 Qe7 32. Qg3 $11) 29... Qa7 30.
Rxf7 Qxd4+ 31. Kh1 Be6 32. Rxf8+ Rxf8 33. Rxf8+ Kxf8 34. Qc2 {with a tenable
position.}) 24... Bb7 $17 {[%emt 0:06:31] White has a lot of space on the
kingside, but his position turns out to be over-extended. In the long run he
is going to have major difficulties with his king.} 25. Na4 {[%emt 0:01:18]}
Qa7 {[%emt 0:00:05]} 26. Nc5 {[%emt 0:00:08]} Rac8 {[%emt 0:00:49]} 27. a4 {
[%emt 0:09:01]} (27. Nxb7 Qxb7 28. a4 (28. Rfe1 Bb8 $40) 28... b4 {is also
difficult for White. The opposite-coloured bishops increase Black's attacking
potential.} 29. Ne5 Qb6 $1 (29... Rfe8 30. Rxc8 Rxc8 31. Re1 Qb6 32. Nf3 a5 $15
) 30. Nf3 Bb8 $1 {[%cal Gb6d6]} 31. Rxc8 Rxc8 32. Rf2 Qd6 33. Ne5 Ba7 34. Nf3 (
34. Rc2 Re8 $19) 34... Ne4 $19) 27... Bxc5 {[%emt 0:01:05]} 28. dxc5 {[%emt 0:
00:11]} d4 $1 {[%emt 0:02:06] This is even more convincing than the natural ...
Rxc5.} (28... Rxc5 29. Rxc5 Qxc5 30. axb5 axb5 31. Qxb5 Qa7 32. Qb4 d4 33. Kf2
Rd8 $19) 29. axb5 {[%emt 0:00:30]} axb5 {[%emt 0:00:05]} 30. Qxb5 {[%emt 0:03:
55]} (30. Rfe1 Rxc5 31. Rxc5 Qxc5 32. Qxb5 Qc7 $19) 30... Bc6 $1 {[%emt 0:00:
32]} 31. Qb6 {[%emt 0:02:39]} Qd7 $1 {[%emt 0:00:18]} 32. Kg1 {[%emt 0:00:05]}
(32. Qa5 Rfe8 33. Rce1 Rxe1 34. Rxe1 Qb7 35. Rf1 Nd5 $19) 32... Rfe8 $19 {
[%emt 0:01:28] The game is more or less over. With such a weak king it's
impossible to survive.} 33. Rce1 {[%emt 0:01:12]} Rxe1 {[%emt 0:02:18]} 34.
Nxe1 {[%emt 0:00:10]} Re8 {[%emt 0:00:12]} 35. Ng2 {[%emt 0:03:26]} Nd5 {
[%emt 0:01:57]} 36. Qb3 {[%emt 0:02:23]} Ne3 {[%emt 0:00:05]} 37. Nxe3 {
[%emt 0:00:57]} dxe3 {[%emt 0:00:05]} 38. Qc4 {[%emt 0:00:07]} Qc7 {[%emt 0:00:
59]} 39. Qf4 {[%emt 0:00:07]} Qxf4 {[%emt 0:00:26]} 40. Rxf4 {[%emt 0:00:00]}
e2 {[%emt 0:00:00]} 41. Bxe2 {[%emt 0:00:08]} Rxe2 {[%emt 0:00:12]} 42. Rb4 {
[%emt 0:00:44]} Rg2+ {[%emt 0:03:27]} 43. Kf1 {[%emt 0:00:05]} Rc2 {[%emt 0:00:
07] A convincing counterattacking game by Caruana.} 0-1

[Event "Khanty-Mansiysk FIDE GP"]
[Site "Khanty-Mansiysk"]
[Date "2015.05.19"]
[Round "5"]
[White "Caruana, Fabiano"]
[Black "Jobava, Baadur"]
[Result "1/2-1/2"]
[ECO "B12"]
[WhiteElo "2803"]
[BlackElo "2699"]
[PlyCount "97"]
[EventDate "2015.05.14"]
[EventType "tourn"]
[EventRounds "11"]
[EventCountry "RUS"]
[EventCategory "21"]
[SourceTitle "CBM 167"]
[Source "ChessBase"]
[SourceDate "2015.07.13"]
[SourceVersion "1"]
[SourceVersionDate "2015.07.13"]
[SourceQuality "1"]
[TimeControl "40/7200:20/3600:900+30"]

1. e4 {[%emt 0:00:03]} c6 {[%emt 0:01:07]} 2. d4 {[%emt 0:00:09]} d5 {[%emt 0:
00:04]} 3. e5 {[%emt 0:00:05]} Bf5 {[%emt 0:00:04]} 4. Nf3 {[%emt 0:00:14]} e6
{[%emt 0:00:04]} 5. Be2 {[%emt 0:00:07]} f6 {[%emt 0:00:04]} 6. O-O {[%emt 0:
00:46]} fxe5 $146 {[%emt 0:00:04]} 7. Nxe5 {[%emt 0:00:38]} Nd7 {[%emt 0:00:07]
} 8. Bd3 {[%emt 0:00:13]} Ngf6 {[%emt 0:00:19]} 9. Re1 {[%emt 0:01:17]} Be7 {
[%emt 0:00:08]} 10. Nf3 {[%emt 0:01:39]} Ne4 {[%emt 0:00:26]} 11. Nc3 {[%emt 0:
07:13]} Ndf6 {[%emt 0:00:17]} 12. Bg5 {[%emt 0:00:35]} O-O {[%emt 0:06:26]} 13.
Nxe4 {[%emt 0:01:58]} dxe4 {[%emt 0:00:46]} 14. Bxf6 {[%emt 0:00:06]} exd3 {
[%emt 0:00:04][%csl Gd3]} 15. Bxe7 {[%emt 0:00:08]} Qxe7 {[%emt 0:00:04]} 16.
c3 {[%emt 0:04:40]} c5 {[%emt 0:06:22]} 17. dxc5 {[%emt 0:09:24]} Qxc5 {
[%emt 0:00:26]} 18. Qd2 {[%emt 0:00:59]} Bg4 {[%emt 0:03:32]} 19. Qxd3 {
[%emt 0:33:09]} Bxf3 {[%emt 0:00:07]} 20. gxf3 {[%emt 0:00:03]} Qg5+ {[%emt 0:
01:50]} 21. Kh1 {[%emt 0:00:58]} Rad8 {[%emt 0:02:22]} 22. Qe4 {[%emt 0:03:02]}
Qf5 {[%emt 0:07:45]} 23. Qxf5 {[%emt 0:08:08]} Rxf5 {[%emt 0:00:06]} 24. Rad1 {
[%emt 0:00:08]} Rfd5 {[%emt 0:00:08]} 25. Rxd5 {[%emt 0:05:04]} Rxd5 {[%emt 0:
00:06]} 26. Re2 {[%emt 0:01:55]} Kf7 {[%emt 0:00:18]} 27. f4 {[%emt 0:03:00]}
Rd1+ {[%emt 0:09:06]} 28. Kg2 {[%emt 0:00:08]} Rb1 {[%emt 0:00:24]} 29. Kf3 {
[%emt 0:06:24]} g6 {[%emt 0:00:46]} 30. b3 {[%emt 0:03:37]} Rc1 {[%emt 0:00:53]
} 31. c4 {[%emt 0:00:52]} Rc3+ {[%emt 0:00:14]} 32. Ke4 {[%emt 0:01:26]} Ke7 {
[%emt 0:00:05]} 33. Rd2 {[%emt 0:01:58]} Rc1 {[%emt 0:00:32]} 34. Kf3 {[%emt 0:
06:57]} b6 {[%emt 0:03:00]} 35. Rd3 {[%emt 0:01:30]} Ra1 {[%emt 0:01:12]} 36.
a4 {[%emt 0:00:27]} Ra2 {[%emt 0:05:30]} 37. Ke3 {[%emt 0:01:45]} a5 {[%emt 0:
02:25]} 38. Kf3 {[%emt 0:04:25]} Rb2 {[%emt 0:00:17]} 39. h3 {[%emt 0:01:24]}
Rc2 {[%emt 0:00:29]} 40. Kg3 {[%emt 0:00:00]} Rb2 {[%emt 0:00:00]} 41. Re3 {
[%emt 0:04:47]} Kf6 {[%emt 0:07:26]} 42. f3 {[%emt 0:02:22]} Ke7 {[%emt 0:00:
09]} 43. Kh4 {[%emt 0:02:27]} h6 {[%emt 0:01:57]} 44. Kg3 {[%emt 0:00:49]} Rb1
{[%emt 0:00:06]} 45. h4 {[%emt 0:03:57]} h5 {[%emt 0:00:32]} 46. Rc3 {[%emt 0:
05:41]} Kd6 {[%emt 0:00:05]} 47. f5 {[%emt 0:06:36]} gxf5 {[%emt 0:00:04]} 48.
Kf4 {[%emt 0:00:07]} Ke7 {[%emt 0:00:09]} 49. c5 {[%emt 0:03:27]} 1/2-1/2

[Event "Khanty-Mansiysk FIDE GP"]
[Site "Khanty-Mansiysk"]
[Date "2015.05.21"]
[Round "7"]
[White "Caruana, Fabiano"]
[Black "Gelfand, Boris"]
[Result "1/2-1/2"]
[ECO "D73"]
[WhiteElo "2803"]
[BlackElo "2744"]
[PlyCount "60"]
[EventDate "2015.05.14"]
[EventType "tourn"]
[EventRounds "11"]
[EventCountry "RUS"]
[EventCategory "21"]
[SourceTitle "CBM 167"]
[Source "ChessBase"]
[SourceDate "2015.07.13"]
[SourceVersion "1"]
[SourceVersionDate "2015.07.13"]
[SourceQuality "1"]
[TimeControl "40/7200:20/3600:900+30"]

1. d4 {[%emt 0:00:03]} Nf6 {[%emt 0:00:05]} 2. c4 {[%emt 0:00:05]} g6 {[%emt 0:
00:02]} 3. g3 {[%emt 0:00:17]} c6 {[%emt 0:00:24]} 4. Nf3 {[%emt 0:02:21]} Bg7
{[%emt 0:01:20]} 5. Bg2 {[%emt 0:00:12]} d5 {[%emt 0:01:21]} 6. cxd5 {[%emt 0:
00:42]} cxd5 {[%emt 0:00:15]} 7. Nc3 {[%emt 0:00:09]} O-O {[%emt 0:00:42]} 8.
Ne5 {[%emt 0:00:42]} Bf5 {[%emt 0:01:19]} 9. Be3 {[%emt 0:01:11]} Qb6 {[%emt 0:
03:50]} 10. Qd2 {[%emt 0:06:57]} Nc6 {[%emt 0:01:30]} 11. Rc1 {[%emt 0:10:03]}
Rac8 {[%emt 0:03:12]} 12. O-O {[%emt 0:00:57]} Rfd8 {[%emt 0:01:55]} 13. Na4 {
[%emt 0:15:58]} Qb5 {[%emt 0:03:42]} 14. b3 {[%emt 0:12:27]} Nxe5 {[%emt 0:25:
44]} 15. dxe5 {[%emt 0:01:46]} Ne4 {[%emt 0:01:46]} 16. Qb2 {[%emt 0:04:52]} b6
{[%emt 0:10:40]} 17. Bd4 {[%emt 0:15:00]} Qb4 {[%emt 0:14:27]} 18. Rfd1 {
[%emt 0:11:07]} Rxc1 {[%emt 0:12:38]} 19. Rxc1 {[%emt 0:00:20]} Rc8 {[%emt 0:
00:04]} 20. e3 {[%emt 0:03:21]} Nc5 {[%emt 0:08:06]} 21. e6 {[%emt 0:19:05]}
Bxe6 {[%emt 0:02:59]} 22. Bxg7 {[%emt 0:00:33]} Nxa4 {[%emt 0:01:33]} 23. Rxc8+
{[%emt 0:00:08]} Bxc8 {[%emt 0:00:03]} 24. Qa1 {[%emt 0:03:01]} f6 {[%emt 0:05:
21]} 25. Bxf6 {[%emt 0:01:34]} exf6 {[%emt 0:00:14]} 26. Bxd5+ {[%emt 0:00:06]}
Kg7 {[%emt 0:00:03]} 27. bxa4 {[%emt 0:00:04]} Qxa4 {[%emt 0:01:09]} 28. e4 {
[%emt 0:01:58]} Qb5 {[%emt 0:01:38]} 29. Kg2 {[%emt 0:00:31]} Qc5 {[%emt 0:01:
02]} 30. Qd1 {[%emt 0:00:47]} Bd7 {[%emt 0:01:56]} 1/2-1/2